fUSD/lending_fUSD_20260525
["ID","MTS","AMOUNT","RATE_DAILY","PERIOD"]
[422931563,1779649840000,-500.0,0.00027799,120]
[422931542,1779649840000,-583.20099933,0.00027789,2]
[422931553,1779649840000,-151.0,0.00027797,7]
[422931557,1779649840000,-500.0,0.00027799,120]
[422931548,1779649840000,-162.61,0.00027791,7]
[422931546,1779649840000,-1639.5378866,0.00027791,2]
[422931544,1779649840000,-161.83341096,0.0002779,2]
[422931559,1779649840000,-500.0,0.00027799,120]
[422931561,1779649840000,-500.0,0.00027799,120]
[422931575,1779649840000,-500.0,0.00027799,120]
[422931567,1779649840000,-500.0,0.00027799,120]
[422931565,1779649840000,-648.63475119,0.00027799,120]
[422931582,1779649840000,-625.46,0.00027799,2]
[422931571,1779649840000,-500.0,0.00027799,120]
[422931551,1779649840000,-478.45690052,0.00027791,2]
[422931645,1779649840000,-25000.0,0.00027847,7]
[422931616,1779649840000,-167.06305135,0.00027806,2]
[422931643,1779649840000,-671.37,0.00027846,2]
[422931710,1779649840000,-1500000.0,0.0002789,2]
[422931714,1779649840000,-10000.0,0.000279,2]
[422931725,1779649840000,-4335.63177167,0.000279,2]
[422931718,1779649840000,-25000.0,0.000279,7]
[422931716,1779649840000,-1271.4393,0.000279,2]
[422931727,1779649840000,-216.57686454,0.000279,2]
[422931729,1779649840000,-1639.5378866,0.000279,2]
[422931731,1779649840000,-478.45690052,0.000279,2]
[422931723,1779649840000,-3045.39661338,0.000279,2]
[422931721,1779649840000,-395.47924663,0.000279,2]
[422931733,1779649840000,-583.20099933,0.000279,2]
[422931735,1779649840000,-5800.0,0.000279,2]
[422931712,1779649840000,-25000.0,0.00027891,7]
[422931738,1779649840000,-2316.0,0.00027909,3]
[422931755,1779649840000,-625.46,0.00027995,2]
[422931740,1779649840000,-1000.0,0.00027965,3]
[422931757,1779649840000,-3419.4649816,0.00027996,2]
[422931742,1779649840000,-1000.0,0.0002797,2]
[422931748,1779649840000,-150.0,0.00027973,2]
[422931750,1779649840000,-161.83341096,0.0002799,2]
[422931761,1779649840000,-44934.9852605,0.00027996,2]
[422931649,1779649840000,-25000.0,0.00027856,7]
[422931746,1779649840000,-1000.0,0.0002797,2]
[422931744,1779649840000,-1000.0,0.0002797,2]
[422931763,1779649840000,-7902.3053036,0.00027996,2]
[422931765,1779649840000,-1297.8105877,0.00027996,2]
[422931752,1779649840000,-161.83341096,0.0002799,2]
[422931708,1779649840000,-405.26964888,0.00027889,7]
[422931759,1779649840000,-21375.2146669,0.00027996,2]
[422931706,1779649840000,-500.0,0.00027889,7]
[422931693,1779649840000,-625.46,0.00027889,2]
[422931647,1779649840000,-583.20099933,0.00027856,2]
[422931656,1779649840000,-25000.0,0.00027865,7]
[422931652,1779649840000,-150.0,0.0002786,2]
[422931654,1779649840000,-625.46,0.00027864,2]
[422931660,1779649840000,-3369.06542299,0.00027871,2]
[422931662,1779649840000,-239.72483399,0.00027872,2]
[422931664,1779649840000,-486.25,0.00027872,2]
[422931675,1779649840000,-151.0,0.00027887,7]
[422931668,1779649840000,-25000.0,0.00027874,7]
[422931666,1779649840000,-496.67,0.00027872,2]
[422931673,1779649840000,-25000.0,0.00027882,7]
[422931767,1779649840000,-55828.8669917,0.00027996,2]
[422931658,1779649840000,-1000.0,0.0002787,2]
[422931670,1779649840000,-583.20099933,0.00027878,2]
[422931677,1779649840000,-151.0,0.00027887,7]
[422931691,1779649840000,-625.46,0.00027889,2]
[422931696,1779649840000,-625.46,0.00027889,2]
[422931702,1779649840000,-500.0,0.00027889,7]
[422931700,1779649840000,-500.0,0.00027889,7]
[422931698,1779649840000,-625.46,0.00027889,2]
[422931704,1779649840000,-500.0,0.00027889,7]
[422931687,1779649840000,-625.46,0.00027889,2]
[422931685,1779649840000,-635.31155049,0.00027889,120]
[422931681,1779649840000,-500.0,0.00027889,120]
[422931683,1779649840000,-500.0,0.00027889,120]
[422931679,1779649840000,-500.0,0.00027889,120]
[422931689,1779649840000,-625.46,0.00027889,2]
[422931796,1779649841000,-625.46,0.00027999,2]
[422931794,1779649841000,-625.46,0.00027999,2]
[422931805,1779649841000,-625.46,0.00027999,2]
[422931807,1779649841000,-625.52067079,0.00027999,2]
[422931803,1779649841000,-625.46,0.00027999,2]
[422931792,1779649841000,-1000.0,0.00027999,120]
[422931790,1779649841000,-671.60360477,0.00027999,2]
[422931788,1779649841000,-671.37,0.00027999,2]
[422931784,1779649841000,-671.37,0.00027999,2]
[422931782,1779649841000,-671.37,0.00027999,2]
[422931778,1779649841000,-1000.0,0.00027998,10]
[422931773,1779649841000,-151.0,0.00027997,7]
[422931780,1779649841000,-300.0,0.00027999,10]
[422931775,1779649841000,-1000.0,0.00027998,7]
[422931771,1779649841000,-8117.608418,0.00027996,2]
[422931769,1779649841000,-3232.8280306,0.00027996,2]
[422931795,1779649841000,-625.46,0.00027999,2]
[422931785,1779649841000,-671.37,0.00027999,2]
[422931800,1779649841000,-625.46,0.00027999,2]
[422931815,1779649841000,-764.6911317,0.00028,120]
[422931791,1779649841000,-1000.0,0.00027999,2]
[422931847,1779649841000,-1302.85383585,0.00027892,2]
[422931851,1779649841000,-10249.87302747,0.00028,120]
[422931857,1779649841000,-666.14548875,0.00028,120]
[422931849,1779649841000,-6022.14616415,0.00028,120]
[422931799,1779649841000,-625.46,0.00027999,2]
[422931844,1779649841000,-500.0,0.00027799,2]
[422931860,1779649841000,-595063.32037793,0.00028,120]
[422931841,1779649841000,-3553.44756302,0.00027892,2]
[422931855,1779649841000,-500.0,0.00027799,2]
[422931839,1779649841000,-543.96360113,0.00027892,2]
[422931812,1779649841000,-4259490.51050151,0.00028,120]
[422931825,1779649841000,-1882.4660192,0.00028,120]
[422931822,1779649841000,-929.10205613,0.00028,120]
[422931811,1779649841000,-31686.00542397,0.00028,2]
[422931809,1779649841000,-1304.0,0.00028,5]
[422931797,1779649841000,-625.46,0.00027999,2]
[422931793,1779649841000,-625.46,0.00027999,2]
[422931837,1779649841000,-399.735,0.00027892,2]
[422932206,1779649844000,-291.25907396,0.00027397,2]
[422932467,1779649846000,-41407.35259322,0.00028,120]
[422932463,1779649846000,-500.0,0.00027799,2]
[422932465,1779649846000,-301.87,0.00027799,2]
[422932461,1779649846000,-1004.18121196,0.00027397,2]
[422932466,1779649846000,-3369.06542299,0.000279,2]
[422932462,1779649846000,-159.72,0.0002755,30]
[422932464,1779649846000,-500.0,0.00027799,2]
[422932472,1779649847000,-610463.90185446,0.00028,120]
[422932473,1779649847000,-1912.5,0.00028,120]
[422932474,1779649847000,-19605.3699992,0.00028,120]
[422932471,1779649847000,-9959.26956671,0.00028,120]
[422932522,1779649959000,-597.8388,0.00014345,2]
[422932521,1779649959000,-500.0,0.00012959,2]
[422932523,1779649963000,446.12909799,0.00014332,2]
[422932524,1779649971000,208.8304494,0.00014345,2]
[422932526,1779649977000,-500.0,0.00014431,2]
[422932525,1779649977000,-204.80660156,0.00014431,2]
[422932536,1779649978000,-500.0,0.00014431,2]
[422932527,1779649978000,-500.0,0.00014431,2]
[422932531,1779649978000,-513.63749743,0.00014431,2]
[422932529,1779649978000,-427.47981206,0.00014431,2]
[422932530,1779649978000,-226.22696164,0.00014431,2]
[422932528,1779649978000,-500.0,0.00014431,2]
[422932534,1779649978000,-500.0,0.00014431,2]
[422932535,1779649978000,-500.0,0.00014431,2]
[422932533,1779649978000,-500.0,0.00014431,2]
[422932537,1779649978000,-500.0,0.00014431,2]
[422932540,1779649978000,-180.63378153,0.00014431,2]
[422932538,1779649978000,-500.0,0.00014431,2]
[422932539,1779649978000,-500.0,0.00014431,2]
[422932541,1779649978000,-500.0,0.00014431,2]
[422932542,1779649978000,-243194.41699839,0.00014432,2]
[422932532,1779649978000,-500.0,0.00014431,2]
[422932546,1779650010000,-197375.39,0.00014432,2]
[422932545,1779650010000,-300.0,0.0001443,2]
[422932544,1779650010000,-181.478,0.00014143,2]
[422932543,1779650010000,-2143.132,0.00014143,2]
[422932552,1779650360000,4816.27162581,8e-05,2]
[422933461,1779651031000,-250.0,0.00010295,2]
[422933462,1779651031000,-150.0,0.00010299,2]
[422933464,1779651031000,-10785.35173703,0.000103,2]
[422933459,1779651031000,-263.26,0.0001,2]
[422933463,1779651031000,-44123.54693057,0.000103,2]
[422933460,1779651031000,-12226.51650359,0.0001029,2]
[422933468,1779651031000,-250.0,0.00011319,2]
[422933471,1779651031000,-7331.15451498,0.00013041,2]
[422933466,1779651031000,-1254.41808677,0.000103,2]
[422933469,1779651031000,-495.81,0.00012777,2]
[422933470,1779651031000,-378.5,0.00012992,2]
[422933467,1779651031000,-6899.93548502,0.000103,2]
[422933473,1779651031000,-765.92068717,0.00013041,2]
[422933472,1779651031000,-3167.98258065,0.00013041,2]
[422933465,1779651031000,-32528.82686699,0.000103,2]
[422933566,1779651037000,-122.9422172,0.00013041,2]
[422933568,1779651037000,-597.83886656,0.00013092,2]
[422933569,1779651037000,-11180.59600123,0.00013092,2]
[422933567,1779651037000,-4992.05778282,0.00013092,2]
[422933608,1779651038000,-1600.0,0.000144,5]
[422933612,1779651038000,-406.60393528,0.00014431,2]
[422933602,1779651038000,-500.0,0.0001435,2]
[422933610,1779651038000,-500.0,0.00014431,2]
[422933613,1779651038000,-500.0,0.00014431,2]
[422933606,1779651038000,-174.87,0.00014384,2]
[422933601,1779651038000,-232942.9932,0.00014332,2]
[422933607,1779651038000,-9828.35234302,0.00014393,2]
[422933605,1779651038000,-208.8304494,0.00014377,2]
[422933604,1779651038000,-495.81,0.00014374,2]
[422933611,1779651038000,-500.0,0.00014431,2]
[422933603,1779651038000,-1239.93,0.0001435,2]
[422933609,1779651038000,-151.0,0.00014429,2]
[422933649,1779651038000,-500.0,0.00014431,2]
[422933617,1779651038000,-500.0,0.00014431,2]
[422933628,1779651038000,-500.0,0.00014431,2]
[422933624,1779651038000,-500.0,0.00014431,2]
[422933626,1779651038000,-500.0,0.00014431,2]
[422933634,1779651038000,-282.42,0.00014431,2]
[422933630,1779651038000,-500.0,0.00014431,2]
[422933632,1779651038000,-500.0,0.00014431,2]
[422933636,1779651038000,-500.0,0.00014431,2]
[422933638,1779651038000,-500.0,0.00014431,2]
[422933644,1779651038000,-500.0,0.00014431,2]
[422933647,1779651038000,-500.0,0.00014431,2]
[422933597,1779651038000,-500.0,0.0001432,2]
[422933615,1779651038000,-500.0,0.00014431,2]
[422933598,1779651038000,-1239.93,0.0001432,2]
[422933572,1779651038000,-6685.0,0.00013118,2]
[422933594,1779651038000,-2723.01133865,0.00014287,2]
[422933571,1779651038000,-44892.11,0.00013109,2]
[422933570,1779651038000,-3058.50734939,0.00013092,2]
[422933573,1779651038000,-535.36,0.00013142,2]
[422933574,1779651038000,-150.0,0.00013225,2]
[422933576,1779651038000,-378.5,0.00013317,2]
[422933575,1779651038000,-200.0,0.00013298,2]
[422933577,1779651038000,-2418.0,0.00013367,2]
[422933578,1779651038000,-191.09,0.00013395,2]
[422933579,1779651038000,-1037.35,0.00013435,2]
[422933581,1779651038000,-150.0,0.00013488,2]
[422933580,1779651038000,-159.23,0.00013435,2]
[422933583,1779651038000,-378.5,0.00013642,2]
[422933584,1779651038000,-167.4,0.00013676,2]
[422933582,1779651038000,-1316.34,0.00013538,2]
[422933585,1779651038000,-174.87,0.00013699,2]
[422933587,1779651038000,-400.0,0.000138,5]
[422933588,1779651038000,-800.0,0.000139,5]
[422933589,1779651038000,-378.5,0.00013966,2]
[422933590,1779651038000,-4474.5946665,0.0001399,2]
[422933592,1779651038000,-9828.3523431,0.00014248,2]
[422933593,1779651038000,-426.79475042,0.00014287,2]
[422933591,1779651038000,-174.87,0.00014041,2]
[422933595,1779651038000,-378.5,0.00014291,2]
[422933600,1779651038000,-242.29264239,0.00014331,2]
[422933599,1779651038000,-9828.35234302,0.0001432,2]
[422933596,1779651038000,-1200.0,0.000143,5]
[422933651,1779651038000,-500.0,0.00014431,2]
[422933586,1779651038000,-200.0,0.00013699,2]
[422933640,1779651038000,-500.0,0.00014431,2]
[422933725,1779651038000,-762.73587364,0.00014778,2]
[422933715,1779651038000,-762.73587366,0.00014655,2]
[422933723,1779651038000,-9828.35234302,0.00014755,2]
[422933709,1779651038000,-9828.35234302,0.00014538,2]
[422933711,1779651038000,-400.0,0.000146,5]
[422933729,1779651038000,-9828.35234302,0.00014828,2]
[422933717,1779651038000,-9828.35234302,0.00014683,2]
[422933727,1779651038000,-400.0,0.000148,5]
[422933730,1779651038000,-25000.0,0.0001483,3]
[422933764,1779651038000,-6503.44765752,0.000149,2]
[422933744,1779651038000,-25000.0,0.00014882,3]
[422933732,1779651038000,-25000.0,0.00014838,3]
[422933713,1779651038000,-9828.35234302,0.0001461,2]
[422933746,1779651038000,-25000.0,0.00014891,3]
[422933736,1779651038000,-25000.0,0.00014847,3]
[422933748,1779651038000,-25000.0,0.000149,3]
[422933738,1779651038000,-25000.0,0.00014856,3]
[422933742,1779651038000,-25000.0,0.00014874,3]
[422933740,1779651038000,-25000.0,0.00014865,3]
[422933750,1779651038000,-762.73587364,0.000149,2]
[422933754,1779651038000,-400.0,0.000149,5]
[422933752,1779651038000,-5800.0,0.000149,2]
[422933758,1779651038000,-533.73887746,0.000149,2]
[422933756,1779651038000,-9828.35234302,0.000149,2]
[422933760,1779651038000,-3045.39661338,0.000149,2]
[422933642,1779651038000,-573.31946531,0.00014431,2]
[422933734,1779651038000,-500.0,0.00014846,2]
[422933721,1779651038000,-233.893032,0.000147,2]
[422933762,1779651038000,-1435.37070158,0.000149,2]
[422933719,1779651038000,-400.0,0.000147,5]
[422933653,1779651038000,-500.0,0.00014431,2]
[422933707,1779651038000,-2100.0,0.000145,5]
[422933657,1779651038000,-500.0,0.00014431,2]
[422933660,1779651038000,-500.0,0.00014431,2]
[422933662,1779651038000,-500.0,0.00014431,2]
[422933676,1779651038000,-500.0,0.00014431,2]
[422933664,1779651038000,-500.0,0.00014431,2]
[422933674,1779651038000,-500.0,0.00014431,2]
[422933672,1779651038000,-500.0,0.00014431,2]
[422933678,1779651038000,-500.0,0.00014431,2]
[422933666,1779651038000,-500.0,0.00014431,2]
[422933670,1779651038000,-500.0,0.00014431,2]
[422933668,1779651038000,-500.0,0.00014431,2]
[422933655,1779651038000,-500.0,0.00014431,2]
[422933682,1779651038000,-500.0,0.00014431,2]
[422933705,1779651038000,-215.34753388,0.00014487,2]
[422933696,1779651038000,-591.41,0.00014431,2]
[422933701,1779651038000,-1239.93,0.00014431,2]
[422933693,1779651038000,-591.41,0.00014431,2]
[422933680,1779651038000,-500.0,0.00014431,2]
[422933699,1779651038000,-1239.93,0.00014431,2]
[422933703,1779651038000,-9828.35234302,0.00014465,2]
[422933694,1779651038000,-591.41,0.00014431,2]
[422933691,1779651038000,-591.41,0.00014431,2]
[422933689,1779651038000,-624.92373812,0.00014431,2]
[422933687,1779651038000,-500.0,0.00014431,2]
[422933684,1779651038000,-500.0,0.00014431,2]
[422933697,1779651038000,-591.41,0.00014431,2]
[422933853,1779651039000,-500.0,0.00014999,2]
[422933860,1779651039000,-500.0,0.00014999,2]
[422933857,1779651039000,-500.0,0.00014999,2]
[422933844,1779651039000,-500.0,0.00014999,2]
[422933827,1779651039000,-500.0,0.00014999,2]
[422933835,1779651039000,-500.0,0.00014999,2]
[422933833,1779651039000,-500.0,0.00014999,2]
[422933829,1779651039000,-500.0,0.00014999,2]
[422933831,1779651039000,-500.0,0.00014999,2]
[422933837,1779651039000,-500.0,0.00014999,2]
[422933855,1779651039000,-500.0,0.00014999,2]
[422933851,1779651039000,-500.0,0.00014999,2]
[422933846,1779651039000,-500.0,0.00014999,2]
[422933841,1779651039000,-500.0,0.00014999,2]
[422933848,1779651039000,-500.0,0.00014999,2]
[422933858,1779651039000,-500.0,0.00014999,2]
[422933865,1779651039000,-500.0,0.00014999,2]
[422933875,1779651039000,-666.0,0.00014999,2]
[422933867,1779651039000,-500.0,0.00014999,2]
[422933869,1779651039000,-300.0,0.00014999,2]
[422933885,1779651039000,-3045.39661338,0.0001505,2]
[422933886,1779651039000,-3045.39661338,0.000152,2]
[422933814,1779651039000,-500.0,0.00014999,2]
[422933873,1779651039000,-300.0,0.00014999,2]
[422933842,1779651039000,-500.0,0.00014999,2]
[422933812,1779651039000,-151.0,0.00014997,2]
[422933795,1779651039000,-6503.44765751,0.00014925,2]
[422933809,1779651039000,-1522.15153691,0.0001499,2]
[422933876,1779651039000,-300.0,0.00014999,2]
[422933768,1779651039000,-510.46388975,0.00014908,2]
[422933772,1779651039000,-299.23586845,0.00014924,2]
[422933767,1779651039000,-510.4638898,0.000149,2]
[422933771,1779651039000,-510.46388975,0.00014917,2]
[422933775,1779651039000,-500.0,0.00014924,2]
[422933777,1779651039000,-500.0,0.00014924,2]
[422933778,1779651039000,-500.0,0.00014924,2]
[422933781,1779651039000,-259.5462482,0.00014924,2]
[422933785,1779651039000,-558.35887315,0.00014924,2]
[422933787,1779651039000,-500.0,0.00014924,2]
[422933793,1779651039000,-1435.37070157,0.00014925,2]
[422933789,1779651039000,-241.73459319,0.00014925,2]
[422933783,1779651039000,-500.0,0.00014924,2]
[422933791,1779651039000,-533.73887744,0.00014925,2]
[422933803,1779651039000,-6503.44765751,0.0001495,2]
[422933801,1779651039000,-1435.37070157,0.0001495,2]
[422933799,1779651039000,-533.73887744,0.0001495,2]
[422933797,1779651039000,-510.46388975,0.00014925,2]
[422933806,1779651039000,-1522.15153691,0.0001499,2]
[422933818,1779651039000,-500.0,0.00014999,2]
[422933808,1779651039000,-1522.15153691,0.0001499,2]
[422933822,1779651039000,-500.0,0.00014999,2]
[422933823,1779651039000,-500.0,0.00014999,2]
[422933825,1779651039000,-500.0,0.00014999,2]
[422933816,1779651039000,-500.0,0.00014999,2]
[422933878,1779651039000,-8158682.16521459,0.00015,2]
[422933820,1779651039000,-500.0,0.00014999,2]
[422933871,1779651039000,-300.0,0.00014999,2]
[422933940,1779651039000,-501.0,0.00021382,5]
[422933944,1779651039000,-569.73,0.00021801,2]
[422933953,1779651039000,-150.0,0.00021918,2]
[422933955,1779651039000,-437.37849,0.0002199,10]
[422933949,1779651039000,-500.0,0.000219,2]
[422933951,1779651039000,-5000.0,0.00021918,2]
[422933957,1779651039000,-3329.9001576,0.00022,2]
[422933960,1779651039000,-201.68822076,0.00022,3]
[422933964,1779651039000,-501.0,0.00022509,6]
[422933962,1779651039000,-200.1,0.00022353,2]
[422933966,1779651039000,-1224.0,0.00022657,2]
[422933974,1779651039000,-626.133,0.00022657,2]
[422933991,1779651039000,-170.245137,0.00022716,2]
[422933985,1779651039000,-300.0,0.00022715,2]
[422933987,1779651039000,-300.0,0.00022715,2]
[422933970,1779651039000,-927.0,0.00022657,2]
[422933976,1779651039000,-1271.0,0.00022657,2]
[422933978,1779651039000,-3635.0,0.00022657,2]
[422933989,1779651039000,-666.0,0.00022715,2]
[422933968,1779651039000,-3546.0,0.00022657,2]
[422933983,1779651039000,-388.31,0.000227,7]
[422933981,1779651039000,-6060.0,0.00022657,2]
[422933993,1779651039000,-340433.761616,0.00022716,2]
[422933995,1779651039000,-826389.80941098,0.00022716,2]
[422933881,1779651039000,-388.31,0.00015,2]
[422933937,1779651039000,-172.16331943,0.00021294,3]
[422933933,1779651039000,-1743.41679708,0.00021,2]
[422933972,1779651039000,-1355.0,0.00022657,2]
[422933930,1779651039000,-200.1,0.00020381,2]
[422933882,1779651039000,-9731757.21925114,0.00015,2]
[422933891,1779651039000,-495.81,0.00015972,2]
[422933892,1779651039000,-200.1,0.00016438,2]
[422933894,1779651039000,-191.09,0.00016744,2]
[422933896,1779651039000,-495.81,0.00017569,2]
[422933889,1779651039000,-167.4,0.00015933,2]
[422933901,1779651039000,-500.00003,0.00018,2]
[422933899,1779651039000,-501.0,0.00018,2]
[422933862,1779651039000,-500.0,0.00014999,2]
[422933907,1779651039000,-200.1,0.0001841,2]
[422933909,1779651039000,-388.31,0.000186,2]
[422933903,1779651039000,-500.0,0.00018,2]
[422933905,1779651039000,-4680.75451569,0.0001821,2]
[422933913,1779651039000,-501.0,0.00019127,3]
[422933931,1779651039000,-465.0,0.00020658,2]
[422933932,1779651039000,-1753.99683303,0.00021,2]
[422933911,1779651039000,-1037.35,0.00018809,2]
[422933920,1779651039000,-600.00000001,0.0002,2]
[422933926,1779651039000,-159.23,0.00020153,2]
[422933928,1779651039000,-501.0,0.00020255,4]
[422933922,1779651039000,-151.0,0.0002,2]
[422933924,1779651039000,-191.09,0.00020093,2]
[422933915,1779651039000,-495.81,0.00019166,2]
[422933917,1779651039000,-575.89,0.0002,2]
[422933918,1779651039000,-6393.33436187,0.0002,2]
[422933934,1779651039000,-233.893032,0.00021218,2]
[422934023,1779651040000,-1239.93,0.00014846,2]
[422934021,1779651040000,-1239.93,0.00014431,2]
[422934019,1779651040000,-1239.93,0.00014431,2]
[422934036,1779651040000,-3685.8786834,0.00022716,2]
[422934038,1779651040000,-921.02456483,0.00022716,2]
[422934034,1779651040000,-40961.18201468,0.00022716,2]
[422934025,1779651040000,-1239.93,0.00014999,2]
[422934030,1779651040000,-1239.93,0.00014999,2]
[422934028,1779651040000,-1239.93,0.00014999,2]
[422934032,1779651040000,-1239.93,0.00014999,2]
[422934045,1779651040000,-1239.93,0.00014999,2]
[422934047,1779651040000,-24727.49087746,0.00022716,2]
[422934077,1779651040000,-7620.00000001,0.00022716,2]
[422934040,1779651040000,-7392.06318358,0.00022716,2]
[422934372,1779651042000,-489.45305428,0.00014431,2]
[422934458,1779651043000,-1239.93,0.00014999,2]
[422934442,1779651043000,-1046.88928713,0.00014431,2]
[422934452,1779651043000,-1612.11,0.00014431,2]
[422934444,1779651043000,-75.76765859,0.00014431,2]
[422934462,1779651043000,-1239.93,0.00014999,2]
[422934448,1779651043000,-1612.11,0.00014431,2]
[422934446,1779651043000,-1612.11,0.00014431,2]
[422934450,1779651043000,-1612.11,0.00014431,2]
[422934454,1779651043000,-510.46388975,0.00014933,2]
[422934466,1779651043000,-1239.93,0.00014999,2]
[422934456,1779651043000,-1239.93,0.00014999,2]
[422934460,1779651043000,-1239.93,0.00014999,2]
[422934468,1779651043000,-1239.93,0.00014999,2]
[422934478,1779651043000,-18261.44449479,0.00022716,2]
[422934470,1779651043000,-1239.93,0.00014999,2]
[422934472,1779651043000,-1239.93,0.00014999,2]
[422934474,1779651043000,-1239.93,0.00014999,2]
[422934476,1779651043000,-62243.02645166,0.00022716,2]
[422934464,1779651043000,-1239.93,0.00014999,2]
[422934814,1779651046000,-182.85391078,0.00013009,2]
[422934820,1779651046000,-1240.07196273,0.00014999,2]
[422934816,1779651046000,-510.46388975,0.00014942,2]
[422934822,1779651046000,-418.0,0.00021237,2]
[422934860,1779651046000,-33584.23958884,0.00022716,2]
[422934818,1779651046000,-1239.93,0.00014999,2]
[422934861,1779651046000,-317.90634479,0.00022716,2]
[422934862,1779651046000,-2184.54355624,0.00022716,2]
[422934824,1779651046000,-2741.0714583,0.00022716,2]
[422935052,1779651667000,628.59349019,7.945e-05,2]
[422935053,1779651667000,2434.42640781,7.945e-05,2]
[422935296,1779652047000,150.0,8.344e-05,2]
[422935411,1779652231000,-150.0,8.868e-05,2]
[422935410,1779652231000,-150.0,8.602e-05,2]
[422935417,1779652231000,-7629.36745521,0.000103,2]
[422935413,1779652231000,-250.0,9.462e-05,2]
[422935414,1779652231000,-367.53,9.624e-05,2]
[422935415,1779652231000,-367.53,0.00010105,2]
[422935412,1779652231000,-367.53,9.143e-05,2]
[422935416,1779652231000,-170.68,0.00010141,2]
[422935419,1779652231000,-1721.7928667,0.000103,2]
[422935421,1779652231000,-367.53,0.00010586,2]
[422935424,1779652231000,-367.53,0.00011067,2]
[422935420,1779652231000,-152.59122989,0.000103,2]
[422935423,1779652231000,-1610.21,0.000108,2]
[422935425,1779652231000,-300.0,0.00011486,2]
[422935422,1779652231000,-1200.0,0.00010799,2]
[422935418,1779652231000,-496.2484482,0.000103,2]
[422935427,1779652231000,-4700.0368705,0.00011487,2]
[422935478,1779652232000,-500.0,0.00014849,2]
[422935477,1779652232000,-500.0,0.00014849,2]
[422935475,1779652232000,-500.0,0.00014849,2]
[422935476,1779652232000,-500.0,0.00014849,2]
[422935474,1779652232000,-500.0,0.00014849,2]
[422935469,1779652232000,-2781.22628541,0.00014752,2]
[422935472,1779652232000,-280.93714836,0.0001484,2]
[422935470,1779652232000,-2197.90984796,0.00014752,2]
[422935466,1779652232000,-4172.4249,0.0001475,2]
[422935471,1779652232000,-168.44554084,0.000148,2]
[422935500,1779652232000,-500.0,0.00014849,2]
[422935473,1779652232000,-500.0,0.00014849,2]
[422935482,1779652232000,-500.0,0.00014849,2]
[422935497,1779652232000,-500.0,0.00014849,2]
[422935483,1779652232000,-500.0,0.00014849,2]
[422935479,1779652232000,-500.0,0.00014849,2]
[422935485,1779652232000,-500.0,0.00014849,2]
[422935484,1779652232000,-500.0,0.00014849,2]
[422935480,1779652232000,-500.0,0.00014849,2]
[422935487,1779652232000,-500.0,0.00014849,2]
[422935489,1779652232000,-478.04,0.00014849,2]
[422935491,1779652232000,-500.0,0.00014849,2]
[422935495,1779652232000,-500.0,0.00014849,2]
[422935493,1779652232000,-500.0,0.00014849,2]
[422935468,1779652232000,-24051.07364798,0.0001475,2]
[422935499,1779652232000,-500.0,0.00014849,2]
[422935506,1779652232000,-500.0,0.00014849,2]
[422935508,1779652232000,-500.0,0.00014849,2]
[422935481,1779652232000,-500.0,0.00014849,2]
[422935467,1779652232000,-4508.47915202,0.0001475,2]
[422935455,1779652232000,-297.48,0.00014366,2]
[422935464,1779652232000,-500.0,0.00014575,2]
[422935428,1779652232000,-367.53,0.00011548,2]
[422935430,1779652232000,-367.53,0.0001203,2]
[422935431,1779652232000,-367.53,0.00012511,2]